Cogmind - Beta 15 *** ADVENTURER MODE // 2025.10.13 @ 08:30:20 // Winter2019/RPGLIKE Player: Gallgagger Result: Self-destructed Performance ------------- Evolutions (1) 500 Regions Visited (6) 1200 Robots Destroyed (151) 755 Value Destroyed (4354) 4354 Prototype IDs (27) 540 Alien Tech Used (0) 0 Bonus (688) 688 TOTAL SCORE: 8037 Bonus ------- High Alert Combat Kills 357 Follower Combat Kills 83 Aligned with FarCom 300 Friendly Fire -52 Cogmind --------- Core Integrity 782/800 Matter 290/300 Energy 286/310 System Corruption 0% Temperature Cool (8) Movement Flying (29) Location -8/Mines Parts ------- > --- POWER (2) -------- Ion Engine Light Nuclear Core > --- PROPULSION (4) --- VTOL Module Improved Flight Unit Improved Flight Unit Improved Flight Unit > --- UTILITY (7) ------ Gravity Neutralizer Improved Light Armor Plating Improved Light Armor Plating Improved Light Armor Plating > --- WEAPON (3) ------- Autogun AWS/Gauss > --- INVENTORY (4) ---- Experimental Sensor Array Seismic Detector Field Lobotomy Kit (5) Peak State ------------ > --- POWER ------------ Ion Engine Light Nuclear Core > --- PROPULSION ------- VTOL Module Improved Flight Unit Improved Flight Unit Improved Flight Unit > --- UTILITY ---------- Gravity Neutralizer Improved Light Armor Plating Improved Light Armor Plating Improved Light Armor Plating > --- WEAPON ----------- Autogun AWS/Gauss > --- INVENTORY -------- Experimental Sensor Array Seismic Detector Chronowheel Field Lobotomy Kit [Rating: 51] Favorites ----------- Power Ion Engine Engine Ion Engine Power Core Light Nuclear Core Propulsion Improved Flight Unit Wheel Wheel Flight Unit Improved Flight Unit Utility Improved Light Armor Plating Device Improved Terrain Scanner Processor Experimental Targeting Computer Protection Improved Light Armor Plating Weapon Autogun Ballistic Gun Autogun Build | -11 -10 -10 -9 -9 -9 -8 ------- Run | Yrd Mat Min Mat Min Exi Min Slots Evolved 12 | 4 4 . 1 . . 3 Power 1 | 1 . . . . . . Propulsion 3 | 1 2 . . . . . Utility 6 | 1 1 . 1 . . 3 Weapon 2 | 1 1 . . . . . Parts Attached 35 | 8 6 2 15 . 4 . Power 3 | 2 . 1 . . . . Engine 2 | 2 . . . . . . Core 1 | . . 1 . . . . Reactor . | . . . . . . . Propulsion 11 | 2 4 1 4 . . . Treads . | . . . . . . . Leg . | . . . . . . . Wheel 2 | 2 . . . . . . Hover . | . . . . . . . Flight 9 | . 4 1 4 . . . Utility 8 | 2 1 . 2 . 3 . Device 3 | 2 . . . . 1 . Storage . | . . . . . . . Processor 1 | . . . . . 1 . Hackware . | . . . . . . . Protection 4 | . 1 . 2 . 1 . Artifact . | . . . . . . . Weapon 13 | 2 1 . 9 . 1 . Energy Gun . | . . . . . . . Energy Cannon . | . . . . . . . Ballistic Gun 13 | 2 1 . 9 . 1 . Ballistic Cannon . | . . . . . . . Launcher . | . . . . . . . Special Weapon . | . . . . . . . Impact Weapon . | . . . . . . . Slashing Weapon . | . . . . . . . Piercing Weapon . | . . . . . . . Special Melee Weapon . | . . . . . . . Unidentified Prototypes 4 | . . . 2 . 2 . Parts Lost . | . . . . . . . Power . | . . . . . . . Propulsion . | . . . . . . . Utility . | . . . . . . . Weapon . | . . . . . . . Highest Loss Streak . | . . . . . . . To Critical Strikes . | . . . . . . . Average Backups 1 | . 1 1 1 1 1 4 Power . | . . . . . . . Propulsion . | . . . . . . . Utility 1 | . . 1 1 1 . 2 Weapon . | . . . . . . . Tool/Special . | . . . . . . . Unused Backups 11 | . . . 2 . 6 3 Power 3 | . . . . . 3 . Propulsion . | . . . . . . . Utility 6 | . . . 2 . 3 1 Weapon . | . . . . . . . Tool/Special 2 | . . . . . . 2 Average Slot Usage (%) 97 | . 99 91 98 100 95 92 Engine 11 | . 22 9 7 7 7 7 Core 5 | . . 6 7 7 7 7 Wheel 2 | . 8 . . . . . Flight 27 | . 20 33 31 30 30 30 Device 16 | . 22 16 15 15 11 7 Protection 10 | . . 8 11 15 18 23 Ballistic Gun 21 | . 22 16 22 23 19 15 Peak Build Rating 51 | 10 13 15 34 32 51 51 Average Rating 25 | 6 10 14 27 31 37 51 On Entrance 21 | . 10 13 15 31 32 51 Naked Turns . | . . . . . . . Heaviest Build 33 | 14 18 18 27 27 33 32 Greatest Support 46 | 20 26 26 29 29 46 46 Greatest Overweight (x) 1 | . 1 . . . . . Average Overweight (x) . | . . . . . . . Largest Inventory Capacity 4 | 2 2 2 2 3 4 4 Average Capacity 2 | 2 2 2 2 2 3 4 Most Carried 4 | . 2 2 2 3 4 4 Average Carried 1 | . 1 1 1 2 2 4 Final Capacity 4 | 2 2 2 2 3 4 4 Final Carried 4 | . 1 2 1 3 4 3 Class Distribution -------------------- 35% | Hacker-Scout 21% | Hacker-Sprinter 14% | Mutant 13% | Scavenger-Mutant 12% | Scavenger-Sprinter Dominant Class ---------------- Scavenger-Mutant | -10/Materials Scavenger-Sprinter | -10/Mines Hacker-Sprinter | -9/Materials Hacker-Scout | -9/Mines Hacker-Scout | -9/Exiles Hacker-Sprinter | -8/Mines Resources | -11 -10 -10 -9 -9 -9 -8 ----------- Run | Yrd Mat Min Mat Min Exi Min Matter Collected 2883 | 219 553 84 988 119 696 224 Remotely . | . . . . . . . Salvage Created 4353 | 123 1097 137 2098 40 178 680 Parts 314 | 9 105 16 127 12 4 41 Haulers Intercepted 7 | . 2 . 5 . . . Recyclers Shooed . | . . . . . . . Parts Field Recycled . | . . . . . . . Retrieved Matter . | . . . . . . . Parts Self-Destructed . | . . . . . . . Prevented . | . . . . . . . Kills | -11 -10 -10 -9 -9 -9 -8 ------- Run | Yrd Mat Min Mat Min Exi Min Combat Hostiles Destroyed 132 | . 37 8 49 7 5 26 Guns 132 | . 37 8 49 7 5 26 Classes Destroyed 15 | 2 7 . 3 1 1 1 Worker 4 | . 1 . 2 1 . . Builder 1 | . 1 . . . . . Tunneler 3 | 3 . . . . . . Hauler 7 | . 2 . 5 . . . Recycler 2 | 1 1 . . . . . Watcher 6 | . 3 . 3 . . . Swarmer 41 | . 9 6 12 4 . 10 Grunt 68 | . 25 2 26 2 . 13 Brawler 2 | . . . 1 . . 1 Duelist 2 | . . . 1 . . 1 Sentry 9 | . . . 9 . . . Demolisher 1 | . . . . 1 . . Hunter 1 | . . . . . . 1 Subdweller 3 | . 3 . . . . . Assembled 4 | . . . . . 4 . Best Kill Streak 14 | 4 9 3 14 5 3 13 Combat Bots Only 13 | . 8 3 12 4 3 13 Max Kills in Single Turn 2 | 1 2 1 2 2 2 2 Gunslinging 1 | . 1 . 1 . . . Exploded . | . . . . . . . Melee . | . . . . . . . Uniques/NPCs Destroyed 1 | . . . . . 1 . 8R-AWN (-9/Exiles) Combat | -11 -10 -10 -9 -9 -9 -8 -------- Run | Yrd Mat Min Mat Min Exi Min Hostile Shots Fired 402 | . 100 30 123 11 82 56 Missed 140 | . 30 15 47 5 20 23 Hits 262 | . 70 15 76 6 62 33 Melee 1 | . . . . . 1 . Projectile 261 | . 70 15 76 6 61 33 Critical Strikes 29 | . 1 . 3 . 24 1 Damage Taken 2656 | . 596 104 693 52 844 367 Core 1851 | . 496 76 482 28 547 222 Absorbed by Shields . | . . . . . . . Redirected to Core 1481 | . 323 72 371 28 477 210 Ignored by Resistances 795 | . 190 33 213 15 240 104 Core Remaining (%) 96 | 100 . 93 . . . . Volleys Fired 360 | 7 114 16 105 13 49 56 Largest 3 | 2 2 2 3 3 3 1 Hottest 69 | 40 40 40 69 69 69 23 Shots Fired 832 | 14 228 32 296 39 117 106 Gun 832 | 14 228 32 296 39 117 106 Cannon . | . . . . . . . Launcher . | . . . . . . . Special . | . . . . . . . Kinetic 832 | 14 228 32 296 39 117 106 Thermal . | . . . . . . . Explosive . | . . . . . . . Electromagnetic . | . . . . . . . Robot Hit Streak 63 | 10 38 12 34 8 38 63 Robot Miss Streak 4 | 1 3 4 2 2 1 1 Penetration Max 1 | . . . . . . 1 Secondary Targets 20 | . 3 3 14 . . . Max Gunslinging Chain 2 | . 1 1 2 . . . Autonomous 51 | . . . . . . 51 Shots Hit Robots 669 | 12 187 20 222 23 106 99 Core Hits 262 | 8 78 11 91 12 22 40 Critical Kills 1 | . . . 1 . . . Critical Parts Destroyed 4 | . 1 . 2 . . 1 Critical Strikes 6 | . 1 . 3 . 1 1 Destroy 6 | . 1 . 3 . 1 1 Melee Attacks . | . . . . . . . Impact . | . . . . . . . Slashing . | . . . . . . . Piercing . | . . . . . . . Sneak Attacks . | . . . . . . . Combat Hostiles . | . . . . . . . Follow-up Attacks . | . . . . . . . Damage Inflicted 9881 | 100 1919 225 3246 376 1612 2403 Guns 9881 | 100 1919 225 3246 376 1612 2403 Cannons . | . . . . . . . Explosions . | . . . . . . . Melee . | . . . . . . . Ramming . | . . . . . . . Kinetic 9881 | 100 1919 225 3246 376 1612 2403 Thermal . | . . . . . . . Explosive . | . . . . . . . Electromagnetic . | . . . . . . . Impact . | . . . . . . . Slashing . | . . . . . . . Piercing . | . . . . . . . Highest Corruption 1 | . 1 1 . . . . Average Corruption 1 | . 1 1 . . . . Corruption Purged . | . . . . . . . Corruption Blocked . | . . . . . . . Overload Shots . | . . . . . . . Overflow Damage . | . . . . . . . Projectiles . | . . . . . . . Explosions . | . . . . . . . Melee . | . . . . . . . Knockbacks . | . . . . . . . Impact . | . . . . . . . Kinetic . | . . . . . . . Secondary . | . . . . . . . Self-Inflicted Damage . | . . . . . . . Shots . | . . . . . . . Rammed . | . . . . . . . Targets Rammed . | . . . . . . . Kicked . | . . . . . . . Crushed . | . . . . . . . Highest Temperature 3 | . . . 3 . . . Average Temperature 3 | . . . 3 . . . Received Heat Transfer 1073 | . 300 24 363 30 140 216 Siege Activations . | . . . . . . . Martial Activations . | . . . . . . . Shielding Activations . | . . . . . . . Robots Disrupted . | . . . . . . . Combat Hostiles . | . . . . . . . Robots Corrupted . | . . . . . . . Combat Hostiles . | . . . . . . . Parts Fried . | . . . . . . . Impact Corruptions . | . . . . . . . Robots Melted . | . . . . . . . Combat Hostiles . | . . . . . . . Parts Melted 3 | . 2 . 1 . . . Heat Transferred . | . . . . . . . Parts Sabotaged . | . . . . . . . Parts Stolen . | . . . . . . . Parts Stripped . | . . . . . . . Power Chain Reactions . | . . . . . . . Alert | -11 -10 -10 -9 -9 -9 -8 ------- Run | Yrd Mat Min Mat Min Exi Min Maximum Alert Level 3 | . 2 1 3 1 . 2 Low Security (%) 32 | 100 43 15 40 . . 14 Level 1 43 | . 29 84 27 100 . 41 Level 2 16 | . 26 . 10 . . 43 Level 3 7 | . . . 21 . . . Level 4 . | . . . . . . . Level 5 . | . . . . . . . High Security . | . . . . . . . Max Security . | . . . . . . . Sterilizations 1 | . . . 1 . . . Peak Influence 929 | 10 616 292 929 393 . 574 Initial 292 | . 2 188 89 292 . . Average 315 | 1 286 243 354 338 . 372 Influence Increases 3969 | 20 1024 194 1844 193 . 694 Destroy 0b10 Robot/C 2540 | . 680 160 1040 140 . 520 Destroy 0b10 Robot/NC 130 | 20 40 . 65 5 . . Destroy Leader 580 | . 140 30 300 20 . 90 Allied During Kill 40 | . . 4 32 4 . . Successful Hack 28 | . 24 . 4 . . . Select Force Hacks 470 | . 110 . 360 . . . Disable Machine 27 | . . . 9 9 . 9 Destroy Structure 19 | . . . 4 . . 15 Partial Spotted 15 | . . . . . . 15 Lose Combat Pursuer 120 | . 30 . 30 15 . 45 Influence Decreases 3405 | 15 459 492 1229 805 275 130 Entered New Map 1438 | . 3 382 183 595 275 . Time Decay 1369 | 15 456 110 458 200 . 130 Lost Ally 20 | . . . 10 10 . . Purge Threat 578 | . . . 578 . . . Squads Dispatched 23 | . 10 . 13 . . . Investigation 22 | . 10 . 12 . . . Extermination . | . . . . . . . Reinforcement . | . . . . . . . Assault 1 | . . . 1 . . . Garrison . | . . . . . . . Intercept . | . . . . . . . Searches Triggered . | . . . . . . . Construction Impeded . | . . . . . . . Haulers Reinforced . | . . . . . . . Active Scanning Responses . | . . . . . . . Cargo Convoy Interrupts . | . . . . . . . Stealth | -11 -10 -10 -9 -9 -9 -8 --------- Run | Yrd Mat Min Mat Min Exi Min Distress Signals 3 | . 2 . 1 . . . Communications Jammed . | . . . . . . . Distress Signals . | . . . . . . . Times Spotted 147 | . 42 8 56 8 6 27 Peak Tracking Total 9 | . 5 3 5 4 9 6 Tactical Retreats 6 | . 2 . 1 1 . 2 Traps | -11 -10 -10 -9 -9 -9 -8 ------- Run | Yrd Mat Min Mat Min Exi Min Traps Triggered 4 | . 2 . 2 . . . Indirectly . | . . . . . . . Trap Hack Attempts . | . . . . . . . Triggered . | . . . . . . . Disarmed . | . . . . . . . Reprogrammed . | . . . . . . . Reused . | . . . . . . . Traps Extracted . | . . . . . . . Installed . | . . . . . . . Triggered . | . . . . . . . Machines | -11 -10 -10 -9 -9 -9 -8 ---------- Run | Yrd Mat Min Mat Min Exi Min Machines Disabled 6 | . . . 2 1 2 1 Max in Single Turn 1 | . . . 1 1 1 1 Machines Repaired . | . . . . . . . Machines Dismantled . | . . . . . . . Machines Sabotaged 7 | . 1 . 6 . . . Overloaded Fab Kills . | . . . . . . . Hacking | -11 -10 -10 -9 -9 -9 -8 --------- Run | Yrd Mat Min Mat Min Exi Min Machines Accessed 26 | . 10 . 15 . 1 . Terminals 18 | . 7 . 11 . . . Fabricators . | . . . . . . . Repair Stations 3 | . 1 . 2 . . . Recycling Units 4 | . 2 . 2 . . . Scanalyzers . | . . . . . . . Garrison Access . | . . . . . . . Total Hacks 52 | . 19 . 32 . 1 . Successful 38 | . 13 . 24 . 1 . Failed 14 | . 6 . 8 . . . Catastrophic 2 | . 1 . 1 . . . Database Lockouts . | . . . . . . . Manual 45 | . 17 . 27 . 1 . Terminals 44 | . 16 . 28 . . . Fabricators . | . . . . . . . Repair Stations 3 | . 1 . 2 . . . Recycling Units 4 | . 2 . 2 . . . Scanalyzers . | . . . . . . . Garrison Access . | . . . . . . . Terminal Hacks 13 | . 4 . 8 . 1 . Robot Analysis 4 | . 4 . . . . . Branch Access Points 1 | . . . 1 . . . Terminal Index 1 | . . . 1 . . . Unreport Threat 5 | . . . 5 . . . Locate Traps 1 | . . . 1 . . . Proto ID Catalog 1 | . . . . . 1 . Fabricator Hacks . | . . . . . . . Repair Station Hacks . | . . . . . . . Recycling Unit Hacks . | . . . . . . . Scanalyzer . | . . . . . . . Garrison Access Hacks . | . . . . . . . Unauthorized Hacks 25 | . 9 . 16 . . . Terminals 18 | . 6 . 12 . . . Assimilate 2 | . . . 2 . . . Botnet 1 | . 1 . . . . . Sabotage 11 | . 2 . 9 . . . Search 4 | . 3 . 1 . . . Fabricators . | . . . . . . . Repair Stations 3 | . 1 . 2 . . . Patch 3 | . 1 . 2 . . . Recycling Units 4 | . 2 . 2 . . . Tunnel 4 | . 2 . 2 . . . Scanalyzers . | . . . . . . . Garrison Access . | . . . . . . . Data Cores Recovered 1 | . . . 1 . . . Used . | . . . . . . . Hacking Detections 9 | . 4 . 5 . . . Full Trace Events 3 | . 2 . 1 . . . Feedback Events 1 | . 1 . . . . . Corruption 1 | . 1 . . . . . Feedback Blocked . | . . . . . . . Robot Schematics Acquired . | . . . . . . . Robots Built . | . . . . . . . Authchips . | . . . . . . . Time . | . . . . . . . Total Robot Build Rating . | . . . . . . . Part Schematics Acquired . | . . . . . . . Parts Built . | . . . . . . . Authchips . | . . . . . . . Time . | . . . . . . . Total Part Build Rating . | . . . . . . . Parts Repaired . | . . . . . . . Time . | . . . . . . . Parts Recycled . | . . . . . . . Recycled Matter . | . . . . . . . Retrieved Matter . | . . . . . . . Retrieved Components . | . . . . . . . Parts Scanalyzed . | . . . . . . . Part Schematics Acquired . | . . . . . . . Parts Damaged . | . . . . . . . Bothacking | -11 -10 -10 -9 -9 -9 -8 ------------ Run | Yrd Mat Min Mat Min Exi Min Used RIF Installer . | . . . . . . . Robots Hacked . | . . . . . . . Non-combat . | . . . . . . . Combat . | . . . . . . . Robot Hacks Applied . | . . . . . . . Relay Couplers Released . | . . . . . . . Fabnet Peak Effective % . | . . . . . . . Robots Rewired . | . . . . . . . Allies Hacked . | . . . . . . . Hacks Repelled . | . . . . . . . Allies | -11 -10 -10 -9 -9 -9 -8 -------- Run | Yrd Mat Min Mat Min Exi Min Total Allies 5 | . . 2 2 1 . . Largest Group 3 | . . 2 2 3 2 . Highest-Rated Group 72 | . . 38 41 72 62 . Highest-Rated Ally 31 | . . 31 31 31 31 . Total Orders 2 | . . . 2 . . . STAY 1 | . . . 1 . . . FOLLOW 1 | . . . 1 . . . Ally Attacks 29 | . . . 26 3 . . Total Damage 443 | . . . 400 43 . . Kills 6 | . . . 6 . . . Allies Corrupted . | . . . . . . . Allies Melted . | . . . . . . . Intel | -11 -10 -10 -9 -9 -9 -8 ------- Run | Yrd Mat Min Mat Min Exi Min Active Infowar (turns) 3118 | 29 971 226 1035 411 446 . Terrain 3118 | 29 971 226 1035 411 446 . Seismic 2914 | 2 971 226 1035 411 269 . Robot Analysis Total 4 | . 4 . . . . . Derelict Logs Recovered 4 | . . 2 . 2 . . Drone Launches . | . . . . . . . Drone Recoveries . | . . . . . . . Exploration | -11 -10 -10 -9 -9 -9 -8 ------------- Run | Yrd Mat Min Mat Min Exi Min Turns Passed 3449 | 69 971 226 1035 411 473 264 Spaces Moved 5393 | 52 1008 534 1583 904 912 400 Core 7 | 7 . . . . . . Treads . | . . . . . . . Legs . | . . . . . . . Wheels 421 | 45 376 . . . . . Hover . | . . . . . . . Flight 4965 | . 632 534 1583 904 912 400 Fastest Speed 29 | 50 31 31 29 29 29 29 Average Speed 34 | 75 54 31 29 29 29 29 Slowest Speed 95 | 80 95 31 31 29 29 29 Overloaded Moves . | . . . . . . . Propulsion Burnouts . | . . . . . . . Robots Hopped 68 | . 23 7 23 12 . 3 Potential Cave-ins . | . . . . . . . Cave-ins Triggered . | . . . . . . . Time Travels 1 | . . . . . . 1 Exploration Rate (%) 76 | 4 89 96 90 95 72 89 Regions Visited 6 Branch Regions 4 Pre-discovered Areas 4 | . 2 . 2 . . . Known Exits Taken 1 | . . . 1 . . . Unknown Exits Taken 5 | 1 1 1 . 1 1 . Scrap Searched 6 | . . 1 . 3 . 2 Spaces Dug . | . . . . . . . Terrain Destroyed 29 | . . . . . . 29 Melee . | . . . . . . . Projectile 29 | . . . . . . 29 AOE . | . . . . . . . Terrain Rammed . | . . . . . . . Walls Destroyed . | . . . . . . . Machines Disabled . | . . . . . . . Actions | -11 -10 -10 -9 -9 -9 -8 --------- Run | Yrd Mat Min Mat Min Exi Min Total 6313 | 66 1202 556 1913 1018 1058 500 Wait 400 | . 57 9 181 106 46 1 Move 5255 | 51 962 519 1538 880 911 394 Hop 64 | . 22 7 21 11 . 3 Pick Up 26 | . 4 . 3 2 17 . Fast Attach 14 | 8 1 . 2 . 3 . Attach 5 | . 2 . 1 . 2 . Detach . | . . . . . . . Swap 22 | . 3 2 14 . 3 . Drop 34 | . 2 . 12 . 20 . Fire 360 | 7 114 16 105 13 49 56 Melee . | . . . . . . . Ram . | . . . . . . . Kick . | . . . . . . . Crush . | . . . . . . . Escape Stasis . | . . . . . . . Rewire . | . . . . . . . Trap . | . . . . . . . Miscellaneous 133 | . 35 3 36 6 7 46 Route ------- -11/Scrapyard -10/Materials (discovered 4 exits: *Mat x3 / [*Min]) -10/Mines (discovered 2 exits: *Mat x2) -9/Materials (discovered 4 exits: [*Mat x2] / *Min x2) -9/Mines (discovered 3 exits: [*Mat x2] / *Exi) -9/Exiles (discovered 2 exits: [*Min x2]) -8/Mines (discovered 2 exits: [*Mat x2]) History --------- Turn | Location | Event 1 | -11/Scrapyard | Upgraded with Power slot (x1) 1 | -11/Scrapyard | Upgraded with Propulsion slot (x1) 1 | -11/Scrapyard | Upgraded with Utility slot (x1) 1 | -11/Scrapyard | Upgraded with Weapon slot (x1) 5 | -11/Scrapyard | Discovered new exit (range 15) 70 | -11/Scrapyard | Entered Materials 316 | -10/Materials | Build established: Mutant 388 | -10/Materials | Discovered new exit (range 7) 479 | -10/Materials | Reached level 2 512 | -10/Materials | Upgraded with Propulsion slot (x1) 516 | -10/Materials | Discovered new exit (range 11) 568 | -10/Materials | Destroyed 8 combat bots 670 | -10/Materials | Derelicts attacked the area 688 | -10/Materials | Reached level 3 726 | -10/Materials | Destroyed 7 combat bots 810 | -10/Materials | Build established: Scavenger-Mutant 881 | -10/Materials | Reached level 4 907 | -10/Materials | Discovered new exit (range 16) 948 | -10/Materials | Discovered new exit (range 16) 952 | -10/Materials | Upgraded with Utility slot (x1) 952 | -10/Materials | Upgraded with Weapon slot (x1) 985 | -10/Materials | Upgraded with Propulsion slot (x1) 1041 | -10/Materials | Entered Mines 1045 | -10/Mines | Learned Materials terminal intel 1050 | -10/Mines | Discovered new exit (range 8) 1084 | -10/Mines | Met a Derelict bent on vengeance 1216 | -10/Mines | Reached level 5 1234 | -10/Mines | Discovered new exit (range 13) 1267 | -10/Mines | Entered Materials 1267 | -9/Materials | Accompanied by 2 allies 1268 | -9/Materials | Loaded intel: 12 terminal locations 1269 | -9/Materials | Reached level 6 1272 | -9/Materials | Led the pair of lost Derelicts to an unsafe place 1281 | -9/Materials | Identified exit to Mines 1307 | -9/Materials | Build established: Scavenger-Sprinter 1574 | -9/Materials | Reached level 7 1640 | -9/Materials | Destroyed 7 combat bots 1727 | -9/Materials | Reached level 8 1779 | -9/Materials | Build established: Hacker-Sprinter 1784 | -9/Materials | Discovered new exit (range 10) 1820 | -9/Materials | Upgraded with Utility slot (x1) 1946 | -9/Materials | Reached level 9 2015 | -9/Materials | Discovered new exit (range 18) 2053 | -9/Materials | Destroyed 12 combat bots 2067 | -9/Materials | First assault squad dispatched 2157 | -9/Materials | Reached level 10 2168 | -9/Materials | Sterilization system engaged 2168 | -9/Materials | Non-combat units ordered to evacuate 2181 | -9/Materials | Destroyed 9 combat bots 2221 | -9/Materials | Build established: Hacker-Scout 2268 | -9/Materials | Combat units ordered to evacuate 2302 | -9/Materials | Entered Mines 2302 | -9/Mines | Accompanied by 2 allies 2323 | -9/Mines | Discovered new exit (range 9) 2353 | -9/Mines | Assembled infested the area 2358 | -9/Mines | Assisted by a Guerilla fighting off Assembled 2362 | -9/Mines | Received a Mining Laser from a helpful Derelict 2404 | -9/Mines | Found a damaged Exp. Sensor Array with a note attached 2409 | -9/Mines | Found Prototype Device 2412 | -9/Mines | Learned 8 Materials zone layouts 2419 | -9/Mines | Learned Materials terminal intel 2435 | -9/Mines | Deemed a non-threat by the Exiles lab entrance 2451 | -9/Mines | Discovered new exit (range 13) 2612 | -9/Mines | Discovered new exit (range 5) 2713 | -9/Mines | Entered Exiles 2713 | -9/Exiles | Accompanied by 2 allies 2717 | -9/Exiles | Discovered new exit (range 17) 2721 | -9/Exiles | Met 8R-AWN 2725 | -9/Exiles | Met EX-HEX 2734 | -9/Exiles | Met EX-BIN 2738 | -9/Exiles | Aligned with FarCom system 2738 | -9/Exiles | Given EX-Vault access code 2743 | -9/Exiles | Led the pair of lost Derelicts to a safe place 2745 | -9/Exiles | Opened EX-Vault 2752 | -9/Exiles | Warned to stay clear of 0b10 Research branches 2760 | -9/Exiles | Met EX-DEC 2776 | -9/Exiles | Discovered new exit (range 17) 2879 | -9/Exiles | Found AWS/Gauss 2882 | -9/Exiles | Found Field Lobotomy Kit 2884 | -9/Exiles | Found Chronowheel 2975 | -9/Exiles | Attacked by the Exiles 3097 | -9/Exiles | Core integrity fell below 50% 3123 | -9/Exiles | Core integrity fell below 20% 3154 | -9/Exiles | Destroyed 8R-AWN 3159 | -9/Exiles | Found Prototype Processor 3159 | -9/Exiles | Identified Exp. Targeting Computer 3186 | -9/Exiles | Stole three prototypes: AWS/Gauss, Chronowheel, Field Lobotomy Kit 3186 | -9/Exiles | Entered Mines 3191 | -8/Mines | Reached level 11 3257 | -8/Mines | Destroyed 13 combat bots 3293 | -8/Mines | Discovered new exit (range 12) 3356 | -8/Mines | Reached level 12 3365 | -8/Mines | AWS/Gauss suddenly broke down 3381 | -8/Mines | Destroyed 7 combat bots 3390 | -8/Mines | Discovered new exit (range 5) 3450 | -8/Mines | Upgraded with Utility slot (x3) 3450 | -8/Mines | Activated Chronowheel 3450 | -8/Mines | Spacetime reconverged on an earlier point 3450 | -8/Mines | Self-destructed Last Messages --------------- 03361_ Slug penetrates Core Extractor. 03361_ Core Extractor disabled. 03362_ Slug penetrates G-50 Soldier. 03363_ Slug penetrates Wall. 03365_ AWS/Gauss suddenly breaks down. 03378_ Destroyed Lgt. Angular Momentum Engine. 03387_ G-50 Soldier destroyed. 03390_ Acquired 108 matter. 03390_ EXIT=FOUND 03418_ G-47 Trooper destroyed. 03432_ Used Protomatter to restore core integrity (+121) 03434_ Used Protomatter to restore part integrity (+43, depleted) 03437_ K-01 Serf collects debris. 03441_ G-47 Trooper destroyed. 03448_ Acquired 72 matter. 03450_ Upgraded: Utility Slot (+3) 03450_ Spacetime feels normal again. 03450_ Spacetime reconverges on this point. Map ----- +----------------------------------------------------+ | | | | | | | | | | | ??????????????????????????????????????????????? | | ??????????????????????????????????????????????? | | ??????????????????????????????????????????????? | | ????????????????????????????????????????####??? | | ??##########??????????????????????????## #### | | ??# #??????????????????????????# | | ??# #??????????????????????????# | | ??# #??????##??????????????????# | | ??# """ #??????? ###???????????????#[*= ?? | | ??# """ #???????# #???????????????#%=% #??? | | ??# """ #???????# #????????????????# *#???? | | ??# #???????# ##???????????????#[##???? | | ??# """ #??###### ##??????????????#=#????? | | ??# """ < #??# ##?????????????# #????? | | ??# """ #??# ### ##???????????## ##???? | | ??# #### #?## #####??????## ##### | | ### """ %/#=## #??## #?????## # | | # " %[%*! #???## ### #????## # | | ### """ *%############ ### #????# ## | | ??# #?????# ## #????# ### ### | | ??# #?????# @ ## #????# ###??#### | | ??##### ####?????# ### ## #????# #??????# | | ??????# #????????#=[#?# ## #????# ######## | | ??????# #????????#!%#?# ### #????# | | ??????# #????????# *#?# #?# #????# ### ##### | | ??????# ####?????# #? ?# ###### #?# #???# | | ??????# #?????# #? ## #?# #???## | | ??????#### #?????# #?# ############?# #????# | | ?????????# #?????# #?# ##????????????# #????? | | ?????????# #?????# #?#*[#?????????????# #????? | | ?????????# #?????# #?#=%####??????????# #????? | | ?????????# #?????# #?# =# #??????????# #????? | | ?????????# #?????# #?? #""##?????????# #????? | | ?????????# ####### #?? ##?##?????# #????? | | ?????????# =[ ! #?? % ?? ?????? ?????? | | ?????????######### #??##=% ??? #??????#?????? | | ?????????????????# #???# % ???? #????????????? | | ?????????????????# #???# #???? #????????????? | | ???????????????### #???# #??## #????#???????? | | ??????????###### ##### #?## #### #???????? | | ?????????## ### ##??????? | | ?????????# ???????? | | ?????????# #????????????? | | ??????????# #?????????????? | | ???????????# ## """ ## ##????????????? | +----------------------------------------------------+ Best States ------------- Heat Dissipation 67 Energy Generation 19 Energy Capacity 400 Matter Stores 300 Matter Capacity 300 Sight Range 18 Terrain Scan Range 16 Terrain Scan Density 110 Additional Mass Support 12 Armor Coverage 450 Resistance: KI 20 Resistance: TH 20 Resistance: EX 20 Resistance: EM 20 Resistance: I 20 Resistance: S 20 Resistance: P 20 Evasion (%) 64 Targeting Accuracy 12 Offensive Hacking 20 Defensive Hacking 5 Item Schematics ----------------- None Robot Schematics ------------------ None Fabricated ------------ Nothing Repaired ---------- Nothing Alien Tech Used ----------------- None Achievements -------------- None Challenges ------------ None RPGLIKE | -11 -10 -10 -9 -9 -9 -8 --------- Run | Yrd Mat Min Mat Min Exi Min Levels Raised 11 | . 3 1 5 . . 2 XP Earned 20835 | 4000 4696 1419 7539 447 117 2617 XP Spent 20380 | 3970 4200 . 3400 750 2960 5100 Upgrades 40 | 15 6 . 8 1 7 3 Power Slot 1 | 1 . . . . . . Propulsion Slot 3 | 1 2 . . . . . Utility Slot 6 | 1 1 . 1 . . 3 Weapon Slot 2 | 1 1 . . . . . Core Integrity 4 | . . . . . 4 . Heat Dissipation 7 | 7 . . . . . . Mass Support 3 | . 2 . . . 1 . Inventory Capacity 4 | 2 . . . 1 1 . Sight Range 2 | . . . 2 . . . Terrain Scan Density 1 | 1 . . . . . . Ranged Accuracy 4 | 1 . . 2 . 1 . Hack Attack % 2 | . . . 2 . . . Hack Defense % 1 | . . . 1 . . . Protomatter Created 1915 | . 764 93 482 118 15 443 Integrity Restored 2548 | . 608 39 688 110 156 947 Core 1833 | . 496 39 486 61 156 595 Parts 715 | . 112 . 202 49 . 352 Protomatter Decayed 828 | . 442 69 199 21 75 22 Game ------ Seed TitaniumOvertunedImmobilizer Manual? 0 Play Time 00:38:39 Cumulative 402.1 hours Start 2025.10.13 @ 07:44:09 End 2025.10.13 @ 08:30:20 Sessions 1 Manual Loads 0 Difficulty Adventurer Special Mode Winter2019/RPGLIKE Game No. 151 Rogue 0 Adventurer 151 Explorer 0 Win Type - Total 16 Types 3/3/3/3/1/0/0/1/1/1 Lore% 92 Gallery% 83 Achievement% 82 Wizard Run 0 Options --------- Layout 2 ASCII 0 Keyboard 0 Movement Numpad Keybinds 0 Fullscreen 2 Font 24/Smallcaps Map View 50x44 Zoom Use 0% Tactical HUD 1 Map Filters NONE Filters NONE Steam 1 RUN: 9a81a6e1-dc62-4951-bdd2-4551f1d58eb9